[Event "Titled Tuesday Blitz February 14 Early 2023"]
[White "Alinasab, Mobina"]
[Black "Meera, Sai"]
[WhiteFideId "12528897"]
[BlackFideId "5004357"]
[WhiteElo "2347"]
[BlackElo "2064"]
[Result "1-0"]
[Round "01"]
[TimeControl "180+2"]
[Date "2023.02.15"]
[WhiteClock "0:00:21"]
[BlackClock "0:00:01"]

1. e4 {[%clk 0:02:59]}  e5 {[%clk 0:02:59]} 2. Nf3 {[%clk 0:02:57]}  Nc6 {[%clk 0:02:58]} 3. Bb5 {[%clk 0:02:57]}  a6 {[%clk 0:02:52]} 4. Ba4 {[%clk 0:02:56]}  Nf6 {[%clk 0:02:52]} 5. O-O {[%clk 0:02:56]}  Bc5 {[%clk 0:02:40]} 6. Bxc6 {[%clk 0:02:51]}  dxc6 {[%clk 0:02:38]} 7. Nxe5 {[%clk 0:02:52]}  O-O {[%clk 0:02:32]} 8. d3 {[%clk 0:02:48]}  Qe7 {[%clk 0:02:20]} 9. Nc4 {[%clk 0:02:45]}  Bg4 {[%clk 0:02:19]} 10. Qe1 {[%clk 0:02:40]}  Rfe8 {[%clk 0:02:19]} 11. Be3 {[%clk 0:02:39]}  Rad8 {[%clk 0:02:18]} 12. Bxc5 {[%clk 0:02:38]}  Qxc5 {[%clk 0:02:18]} 13. Ne3 {[%clk 0:02:38]}  Be6 {[%clk 0:02:00]} 14. Nc3 {[%clk 0:02:28]}  b5 {[%clk 0:01:52]} 15. a3 {[%clk 0:02:28]}  a5 {[%clk 0:01:52]} 16. Kh1 {[%clk 0:02:22]}  Bc8 {[%clk 0:01:46]} 17. f3 {[%clk 0:02:06]}  Qh5 {[%clk 0:01:42]} 18. Qf2 {[%clk 0:02:06]}  b4 {[%clk 0:01:38]} 19. axb4 {[%clk 0:02:05]}  axb4 {[%clk 0:01:39]} 20. Ne2 {[%clk 0:02:05]}  c5 {[%clk 0:01:37]} 21. Nf4 {[%clk 0:02:04]}  Qh6 {[%clk 0:01:37]} 22. Nfd5 {[%clk 0:02:01]}  Nxd5 {[%clk 0:01:33]} 23. Nxd5 {[%clk 0:02:02]}  Re5 {[%clk 0:01:34]} 24. g3 {[%clk 0:01:48]}  c6 {[%clk 0:01:32]} 25. Ne3 {[%clk 0:01:46]}  Bh3 {[%clk 0:01:32]} 26. Rfe1 {[%clk 0:01:44]}  Be6 {[%clk 0:01:32]} 27. f4 {[%clk 0:01:44]}  Rh5 {[%clk 0:01:32]} 28. f5 {[%clk 0:01:44]}  Bc8 {[%clk 0:01:30]} 29. Re2 {[%clk 0:01:43]}  Qd6 {[%clk 0:01:27]} 30. Nc4 {[%clk 0:01:41]}  Qc7 {[%clk 0:01:20]} 31. Qxc5 {[%clk 0:01:39]}  Qxg3 {[%clk 0:01:19]} 32. Qf2 {[%clk 0:01:36]}  Qh3 {[%clk 0:01:16]} 33. Rg1 {[%clk 0:01:35]}  g6 {[%clk 0:01:09]} 34. Qg3 {[%clk 0:01:34]}  Qxg3 {[%clk 0:01:09]} 35. Rxg3 {[%clk 0:01:35]}  Kg7 {[%clk 0:01:09]} 36. Rf2 {[%clk 0:01:24]}  f6 {[%clk 0:01:09]} 37. fxg6 {[%clk 0:01:14]}  hxg6 {[%clk 0:01:09]} 38. Rgf3 {[%clk 0:01:14]}  Rdh8 {[%clk 0:01:06]} 39. Rxf6 {[%clk 0:01:11]}  Rxh2+ {[%clk 0:01:06]} 40. Rxh2 {[%clk 0:01:12]}  Rxh2+ {[%clk 0:01:06]} 41. Kxh2 {[%clk 0:01:13]}  Kxf6 {[%clk 0:01:07]} 42. Kg3 {[%clk 0:01:12]}  Be6 {[%clk 0:01:05]} 43. Ne3 {[%clk 0:01:03]}  Ke5 {[%clk 0:01:05]} 44. c3 {[%clk 0:01:00]}  bxc3 {[%clk 0:01:01]} 45. bxc3 {[%clk 0:01:01]}  c5 {[%clk 0:01:02]} 46. Kf3 {[%clk 0:01:02]}  g5 {[%clk 0:01:01]} 47. Nf1 {[%clk 0:00:40]}  Bb3 {[%clk 0:00:34]} 48. Ke3 {[%clk 0:00:39]}  g4 {[%clk 0:00:33]} 49. d4+ {[%clk 0:00:38]}  cxd4+ {[%clk 0:00:33]} 50. cxd4+ {[%clk 0:00:39]}  Kf6 {[%clk 0:00:33]} 51. Kf4 {[%clk 0:00:40]}  Be6 {[%clk 0:00:31]} 52. Ne3 {[%clk 0:00:40]}  g3 {[%clk 0:00:22]} 53. Kxg3 {[%clk 0:00:40]}  Kg5 {[%clk 0:00:23]} 54. Ng2 {[%clk 0:00:37]}  Bb3 {[%clk 0:00:20]} 55. Kf3 {[%clk 0:00:35]}  Bd1+ {[%clk 0:00:19]} 56. Ke3 {[%clk 0:00:35]}  Bc2 {[%clk 0:00:17]} 57. d5 {[%clk 0:00:32]}  Kf6 {[%clk 0:00:16]} 58. Kf4 {[%clk 0:00:31]}  Bb3 {[%clk 0:00:15]} 59. e5+ {[%clk 0:00:30]}  Ke7 {[%clk 0:00:15]} 60. Ke4 {[%clk 0:00:30]}  Bc2+ {[%clk 0:00:15]} 61. Kd4 {[%clk 0:00:31]}  Bf5 {[%clk 0:00:15]} 62. Nf4 {[%clk 0:00:31]}  Bg4 {[%clk 0:00:13]} 63. Kc5 {[%clk 0:00:26]}  Bf5 {[%clk 0:00:11]} 64. d6+ {[%clk 0:00:26]}  Kd7 {[%clk 0:00:11]} 65. Kd5 {[%clk 0:00:26]}  Bg4 {[%clk 0:00:05]} 66. e6+ {[%clk 0:00:27]}  Ke8 {[%clk 0:00:01]} 67. d7+ {[%clk 0:00:24]}  Kd8 {[%clk 0:00:01]} 68. Kd6 {[%clk 0:00:21]}  Bf5 {[%clk 0:00:01]} 69. e7# {[%clk 0:00:21]} 1-0


[Site "https://www.chess.com"]

[Event "Titled Tuesday Blitz February 14 Early 2023"]
[White "Berezin, Viktor"]
[Black "lisjakzlatko1"]
[WhiteFideId "14107872"]
[WhiteElo "2307"]
[BlackElo "2220"]
[Result "1-0"]
[Round "01"]
[TimeControl "180+2"]
[Date "2023.02.15"]
[WhiteClock "0:00:54"]
[BlackClock "0:00:05"]

1. d4 {[%clk 0:02:59]}  d6 {[%clk 0:02:58]} 2. c4 {[%clk 0:02:59]}  e5 {[%clk 0:02:55]} 3. g3 {[%clk 0:02:57]}  Nd7 {[%clk 0:02:51]} 4. Bg2 {[%clk 0:02:57]}  Ngf6 {[%clk 0:02:46]} 5. Nc3 {[%clk 0:02:57]}  Be7 {[%clk 0:02:46]} 6. Nf3 {[%clk 0:02:57]}  O-O {[%clk 0:02:46]} 7. O-O {[%clk 0:02:58]}  c6 {[%clk 0:02:46]} 8. h3 {[%clk 0:02:58]}  e4 {[%clk 0:02:38]} 9. Ne1 {[%clk 0:02:54]}  d5 {[%clk 0:02:38]} 10. f3 {[%clk 0:02:54]}  exf3 {[%clk 0:02:35]} 11. Nxf3 {[%clk 0:02:53]}  Re8 {[%clk 0:02:36]} 12. Qc2 {[%clk 0:02:51]}  Bf8 {[%clk 0:02:33]} 13. Kh2 {[%clk 0:02:48]}  dxc4 {[%clk 0:02:27]} 14. e4 {[%clk 0:02:46]}  Nb6 {[%clk 0:02:21]} 15. e5 {[%clk 0:02:43]}  Nfd5 {[%clk 0:02:18]} 16. Ng5 {[%clk 0:02:37]}  g6 {[%clk 0:01:35]} 17. Rxf7 {[%clk 0:02:31]}  Bg7 {[%clk 0:01:24]} 18. Rf1 {[%clk 0:02:16]}  Nb4 {[%clk 0:01:07]} 19. Qe2 {[%clk 0:02:07]}  Qxd4 {[%clk 0:00:58]} 20. Nf3 {[%clk 0:01:56]}  Qd3 {[%clk 0:00:54]} 21. Qf2 {[%clk 0:01:48]}  N6d5 {[%clk 0:00:41]} 22. Bd2 {[%clk 0:01:41]}  Rf8 {[%clk 0:00:40]} 23. Rad1 {[%clk 0:01:34]}  Qf5 {[%clk 0:00:33]} 24. Nxd5 {[%clk 0:01:22]}  Nxd5 {[%clk 0:00:29]} 25. Rde1 {[%clk 0:01:20]}  Be6 {[%clk 0:00:25]} 26. Qc5 {[%clk 0:01:17]}  Rac8 {[%clk 0:00:15]} 27. Bc1 {[%clk 0:01:03]}  Qxe5 {[%clk 0:00:14]} 28. Nxe5 {[%clk 0:01:03]}  Rxf1 {[%clk 0:00:11]} 29. Bxf1 {[%clk 0:01:00]}  b6 {[%clk 0:00:08]} 30. Qd6 {[%clk 0:00:59]}  Re8 {[%clk 0:00:07]} 31. Bxc4 {[%clk 0:00:59]}  Bf8 {[%clk 0:00:05]} 32. Qxc6 {[%clk 0:00:54]} 1-0


[Site "https://www.chess.com"]

[Event "Titled Tuesday Blitz February 14 Early 2023"]
[White "Zaksaite, Salomeja"]
[Black "Melian, Juan Sebastian"]
[WhiteFideId "12801496"]
[BlackFideId "3706575"]
[WhiteElo "2283"]
[BlackElo "2293"]
[Result "1-0"]
[Round "01"]
[TimeControl "180+2"]
[Date "2023.02.15"]
[WhiteClock "0:00:44"]
[BlackClock "0:00:36"]

1. e4 {[%clk 0:02:59]}  c5 {[%clk 0:02:54]} 2. Nf3 {[%clk 0:02:58]}  e6 {[%clk 0:02:53]} 3. d4 {[%clk 0:02:58]}  cxd4 {[%clk 0:02:54]} 4. Nxd4 {[%clk 0:02:58]}  a6 {[%clk 0:02:52]} 5. Nc3 {[%clk 0:02:58]}  b5 {[%clk 0:02:50]} 6. Bd3 {[%clk 0:02:57]}  Bb7 {[%clk 0:02:50]} 7. Qe2 {[%clk 0:02:55]}  Nc6 {[%clk 0:02:44]} 8. Nb3 {[%clk 0:02:54]}  Qc7 {[%clk 0:02:37]} 9. Bd2 {[%clk 0:02:54]}  Be7 {[%clk 0:02:16]} 10. O-O {[%clk 0:02:53]}  Nf6 {[%clk 0:02:15]} 11. Rfe1 {[%clk 0:02:51]}  d6 {[%clk 0:02:14]} 12. a4 {[%clk 0:02:50]}  b4 {[%clk 0:02:13]} 13. Na2 {[%clk 0:02:46]}  d5 {[%clk 0:02:08]} 14. e5 {[%clk 0:02:38]}  Nd7 {[%clk 0:02:05]} 15. f4 {[%clk 0:02:28]}  O-O {[%clk 0:02:03]} 16. Kh1 {[%clk 0:02:27]}  Rfe8 {[%clk 0:01:48]} 17. Qg4 {[%clk 0:01:46]}  Nf8 {[%clk 0:01:46]} 18. Rf1 {[%clk 0:01:12]}  f5 {[%clk 0:01:33]} 19. exf6 {[%clk 0:01:10]}  Bxf6 {[%clk 0:01:33]} 20. Nxb4 {[%clk 0:01:06]}  Bxb2 {[%clk 0:01:22]} 21. Rae1 {[%clk 0:01:05]}  Bf6 {[%clk 0:01:03]} 22. Nxc6 {[%clk 0:01:05]}  Qxc6 {[%clk 0:01:00]} 23. Bb4 {[%clk 0:01:05]}  Be7 {[%clk 0:00:51]} 24. Bxe7 {[%clk 0:01:02]}  Rxe7 {[%clk 0:00:52]} 25. Na5 {[%clk 0:01:02]}  Qc7 {[%clk 0:00:50]} 26. Nxb7 {[%clk 0:01:03]}  Qxb7 {[%clk 0:00:51]} 27. f5 {[%clk 0:01:02]}  exf5 {[%clk 0:00:49]} 28. Qxf5 {[%clk 0:00:57]}  Rxe1 {[%clk 0:00:49]} 29. Rxe1 {[%clk 0:00:58]}  Qf7 {[%clk 0:00:49]} 30. Qxf7+ {[%clk 0:00:47]}  Kxf7 {[%clk 0:00:50]} 31. c4 {[%clk 0:00:47]}  dxc4 {[%clk 0:00:46]} 32. Bxc4+ {[%clk 0:00:48]}  Kg6 {[%clk 0:00:47]} 33. a5 {[%clk 0:00:47]}  Kf6 {[%clk 0:00:42]} 34. Kg1 {[%clk 0:00:45]}  Ng6 {[%clk 0:00:40]} 35. Re6+ {[%clk 0:00:44]}  Kf5 {[%clk 0:00:39]} 36. Rxa6 {[%clk 0:00:45]}  Rc8 {[%clk 0:00:36]} 37. Be6+ {[%clk 0:00:44]} 1-0


[Site "https://www.chess.com"]

[Event "Titled Tuesday Blitz February 14 Early 2023"]
[White "Nugumanov, Bakhtiyar"]
[Black "Orzech, Dominik"]
[WhiteFideId "13701797"]
[BlackFideId "1115065"]
[WhiteElo "2316"]
[BlackElo "2308"]
[Result "0-1"]
[Round "01"]
[TimeControl "180+2"]
[Date "2023.02.15"]
[WhiteClock "0:00:20"]
[BlackClock "0:02:00"]

1. Nf3 {[%clk 0:02:26]}  c6 {[%clk 0:02:56]} 2. c4 {[%clk 0:02:25]}  Nf6 {[%clk 0:02:54]} 3. g3 {[%clk 0:02:25]}  g6 {[%clk 0:02:54]} 4. Bg2 {[%clk 0:02:22]}  Bg7 {[%clk 0:02:54]} 5. O-O {[%clk 0:02:23]}  O-O {[%clk 0:02:54]} 6. d4 {[%clk 0:02:23]}  d6 {[%clk 0:02:50]} 7. Nc3 {[%clk 0:02:18]}  Be6 {[%clk 0:02:47]} 8. d5 {[%clk 0:01:56]}  cxd5 {[%clk 0:02:47]} 9. cxd5 {[%clk 0:01:57]}  Bd7 {[%clk 0:02:43]} 10. e4 {[%clk 0:01:48]}  Qb6 {[%clk 0:02:38]} 11. Qe2 {[%clk 0:01:41]}  Na6 {[%clk 0:02:32]} 12. Be3 {[%clk 0:01:12]}  Nc5 {[%clk 0:02:30]} 13. e5 {[%clk 0:01:04]}  dxe5 {[%clk 0:02:26]} 14. Nxe5 {[%clk 0:00:58]}  Bf5 {[%clk 0:02:15]} 15. Na4 {[%clk 0:00:53]}  Rac8 {[%clk 0:02:10]} 16. Nxb6 {[%clk 0:00:52]}  axb6 {[%clk 0:02:08]} 17. Rac1 {[%clk 0:00:39]}  Nfe4 {[%clk 0:02:05]} 18. Bxc5 {[%clk 0:00:26]}  bxc5 {[%clk 0:02:03]} 19. Bxe4 {[%clk 0:00:25]}  Bxe4 {[%clk 0:02:03]} 20. Qxe4 {[%clk 0:00:26]}  b6 {[%clk 0:02:02]} 21. Nd7 {[%clk 0:00:20]}  Rfe8 {[%clk 0:02:00]} 0-1


[Site "https://www.chess.com"]

[Event "Titled Tuesday Blitz February 14 Early 2023"]
[White "Golubev, Mikhail"]
[Black "Cramling Bellon, Anna"]
[WhiteFideId "14100983"]
[BlackFideId "32009232"]
[WhiteElo "2461"]
[BlackElo "2043"]
[Result "1-0"]
[Round "01"]
[TimeControl "180+2"]
[Date "2023.02.15"]
[WhiteClock "0:00:33"]
[BlackClock "0:00:02"]

1. e4 {[%clk 0:02:59]}  c5 {[%clk 0:03:00]} 2. Nf3 {[%clk 0:02:58]}  e6 {[%clk 0:03:00]} 3. d4 {[%clk 0:02:58]}  cxd4 {[%clk 0:03:01]} 4. Nxd4 {[%clk 0:02:59]}  Nf6 {[%clk 0:03:00]} 5. Nc3 {[%clk 0:02:58]}  Nc6 {[%clk 0:03:01]} 6. Ndb5 {[%clk 0:02:56]}  d6 {[%clk 0:03:01]} 7. Bf4 {[%clk 0:02:55]}  e5 {[%clk 0:03:02]} 8. Bg5 {[%clk 0:02:54]}  a6 {[%clk 0:03:02]} 9. Na3 {[%clk 0:02:54]}  b5 {[%clk 0:03:02]} 10. Bxf6 {[%clk 0:02:54]}  gxf6 {[%clk 0:03:01]} 11. Nd5 {[%clk 0:02:54]}  f5 {[%clk 0:03:02]} 12. exf5 {[%clk 0:02:54]}  Bxf5 {[%clk 0:03:01]} 13. c3 {[%clk 0:02:55]}  Bg7 {[%clk 0:03:00]} 14. Nc2 {[%clk 0:02:55]}  O-O {[%clk 0:02:59]} 15. Nce3 {[%clk 0:02:55]}  Be6 {[%clk 0:02:59]} 16. Bd3 {[%clk 0:02:55]}  f5 {[%clk 0:02:58]} 17. O-O {[%clk 0:02:56]}  e4 {[%clk 0:02:55]} 18. Nf4 {[%clk 0:02:34]}  Bf7 {[%clk 0:02:35]} 19. Bc2 {[%clk 0:02:28]}  Qg5 {[%clk 0:02:30]} 20. Nh3 {[%clk 0:02:04]}  Qf6 {[%clk 0:02:25]} 21. f3 {[%clk 0:02:00]}  Bh6 {[%clk 0:02:07]} 22. Nd5 {[%clk 0:01:54]}  Qe5 {[%clk 0:01:55]} 23. fxe4 {[%clk 0:01:51]}  Bxd5 {[%clk 0:01:07]} 24. Qxd5+ {[%clk 0:01:44]}  Qxd5 {[%clk 0:01:07]} 25. exd5 {[%clk 0:01:45]}  Ne7 {[%clk 0:01:08]} 26. Rae1 {[%clk 0:01:42]}  Rae8 {[%clk 0:01:07]} 27. Nf4 {[%clk 0:01:39]}  Bxf4 {[%clk 0:01:03]} 28. Rxf4 {[%clk 0:01:39]}  Nxd5 {[%clk 0:01:02]} 29. Rxe8 {[%clk 0:01:34]}  Nxf4 {[%clk 0:00:27]} 30. Rxf8+ {[%clk 0:01:31]}  Kxf8 {[%clk 0:00:28]} 31. Bxf5 {[%clk 0:01:31]}  h6 {[%clk 0:00:24]} 32. Kf2 {[%clk 0:01:27]}  Ke7 {[%clk 0:00:25]} 33. Kf3 {[%clk 0:01:24]}  Nd5 {[%clk 0:00:21]} 34. Be4 {[%clk 0:01:17]}  Nb6 {[%clk 0:00:21]} 35. b3 {[%clk 0:01:13]}  a5 {[%clk 0:00:21]} 36. Kf4 {[%clk 0:01:10]}  b4 {[%clk 0:00:20]} 37. c4 {[%clk 0:01:02]}  Nd7 {[%clk 0:00:20]} 38. g4 {[%clk 0:01:00]}  Kf6 {[%clk 0:00:19]} 39. h4 {[%clk 0:00:59]}  Nc5 {[%clk 0:00:17]} 40. g5+ {[%clk 0:00:58]}  hxg5+ {[%clk 0:00:17]} 41. hxg5+ {[%clk 0:00:57]}  Kg7 {[%clk 0:00:08]} 42. Kf5 {[%clk 0:00:50]}  a4 {[%clk 0:00:06]} 43. Bc2 {[%clk 0:00:50]}  axb3 {[%clk 0:00:06]} 44. axb3 {[%clk 0:00:49]}  Kf7 {[%clk 0:00:04]} 45. g6+ {[%clk 0:00:40]}  Kg7 {[%clk 0:00:04]} 46. Bd1 {[%clk 0:00:38]}  Nd3 {[%clk 0:00:02]} 47. Ke6 {[%clk 0:00:34]}  Nf4+ {[%clk 0:00:02]} 48. Kxd6 {[%clk 0:00:33]}  Nxg6 {[%clk 0:00:02]} 49. c5 {[%clk 0:00:33]}  Nf4 {[%clk 0:00:02]} 50. c6 {[%clk 0:00:33]} 1-0


[Site "https://www.chess.com"]

[Event "Titled Tuesday Blitz February 14 Early 2023"]
[White "De Souza, Cristiano Gomes"]
[Black "Ordekalog"]
[WhiteFideId "2151758"]
[WhiteElo "2018"]
[BlackElo "2544"]
[Result "1/2-1/2"]
[Round "01"]
[TimeControl "180+2"]
[Date "2023.02.15"]
[WhiteClock "0:00:29"]
[BlackClock "0:00:23"]

1. d4 {[%clk 0:02:59]}  d5 {[%clk 0:02:58]} 2. c4 {[%clk 0:02:59]}  e6 {[%clk 0:02:59]} 3. Nf3 {[%clk 0:02:58]}  c5 {[%clk 0:02:58]} 4. cxd5 {[%clk 0:02:58]}  exd5 {[%clk 0:02:59]} 5. Nc3 {[%clk 0:02:59]}  Nc6 {[%clk 0:02:59]} 6. Bg5 {[%clk 0:02:52]}  Be7 {[%clk 0:02:58]} 7. Bxe7 {[%clk 0:02:51]}  Ngxe7 {[%clk 0:02:58]} 8. e3 {[%clk 0:02:50]}  cxd4 {[%clk 0:02:49]} 9. Nxd4 {[%clk 0:02:50]}  O-O {[%clk 0:02:48]} 10. Be2 {[%clk 0:02:49]}  Qb6 {[%clk 0:02:46]} 11. Qd2 {[%clk 0:02:39]}  Nxd4 {[%clk 0:02:44]} 12. exd4 {[%clk 0:02:38]}  Be6 {[%clk 0:02:23]} 13. O-O {[%clk 0:02:37]}  Nf5 {[%clk 0:02:22]} 14. Rfd1 {[%clk 0:02:30]}  Rad8 {[%clk 0:02:22]} 15. Bf3 {[%clk 0:02:29]}  Nh4 {[%clk 0:02:17]} 16. Qf4 {[%clk 0:02:14]}  Nxf3+ {[%clk 0:02:15]} 17. Qxf3 {[%clk 0:02:14]}  Qxb2 {[%clk 0:02:12]} 18. Rab1 {[%clk 0:02:12]}  Qa3 {[%clk 0:02:02]} 19. Rxb7 {[%clk 0:02:10]}  Rc8 {[%clk 0:01:45]} 20. Nxd5 {[%clk 0:01:28]}  Rc1 {[%clk 0:01:43]} 21. Ne3 {[%clk 0:01:22]}  Rxd1+ {[%clk 0:00:42]} 22. Qxd1 {[%clk 0:01:18]}  Qxa2 {[%clk 0:00:41]} 23. h3 {[%clk 0:01:10]}  Rd8 {[%clk 0:00:35]} 24. d5 {[%clk 0:01:04]}  h6 {[%clk 0:00:26]} 25. Qf3 {[%clk 0:00:47]}  Bxd5 {[%clk 0:00:26]} 26. Nxd5 {[%clk 0:00:46]}  Qxd5 {[%clk 0:00:27]} 27. Qxd5 {[%clk 0:00:44]}  Rxd5 {[%clk 0:00:28]} 28. Rxa7 {[%clk 0:00:43]}  Rd2 {[%clk 0:00:28]} 29. g3 {[%clk 0:00:41]}  h5 {[%clk 0:00:28]} 30. Kg2 {[%clk 0:00:40]}  g6 {[%clk 0:00:28]} 31. h4 {[%clk 0:00:39]}  Kg7 {[%clk 0:00:28]} 32. Ra6 {[%clk 0:00:37]}  Rb2 {[%clk 0:00:27]} 33. Rc6 {[%clk 0:00:36]}  Ra2 {[%clk 0:00:26]} 34. Rb6 {[%clk 0:00:36]}  Rc2 {[%clk 0:00:26]} 35. Rd6 {[%clk 0:00:35]}  Rb2 {[%clk 0:00:26]} 36. Ra6 {[%clk 0:00:34]}  Rc2 {[%clk 0:00:26]} 37. Rb6 {[%clk 0:00:33]}  Ra2 {[%clk 0:00:25]} 38. Rc6 {[%clk 0:00:32]}  Rb2 {[%clk 0:00:25]} 39. Rd6 {[%clk 0:00:31]}  Ra2 {[%clk 0:00:24]} 40. Rc6 {[%clk 0:00:30]}  Rb2 {[%clk 0:00:23]} 41. Rd6 {[%clk 0:00:29]} 1/2-1/2


[Site "https://www.chess.com"]

[Event "Titled Tuesday Blitz February 14 Early 2023"]
[White "Shapiro, Viktor"]
[Black "Zampronha, Wladimir Camilo"]
[WhiteFideId "4175700"]
[BlackFideId "2103087"]
[WhiteElo "2192"]
[BlackElo "2176"]
[Result "1-0"]
[Round "01"]
[TimeControl "180+2"]
[Date "2023.02.15"]
[WhiteClock "0:01:51"]
[BlackClock "0:01:41"]

1. c4 {[%clk 0:03:00]}  Nf6 {[%clk 0:02:59]} 2. Nc3 {[%clk 0:02:59]}  e6 {[%clk 0:03:00]} 3. g3 {[%clk 0:02:59]}  d5 {[%clk 0:02:59]} 4. Bg2 {[%clk 0:02:59]}  Be7 {[%clk 0:02:59]} 5. Nf3 {[%clk 0:02:59]}  O-O {[%clk 0:02:59]} 6. O-O {[%clk 0:02:55]}  d4 {[%clk 0:02:56]} 7. Na4 {[%clk 0:02:55]}  c5 {[%clk 0:02:56]} 8. d3 {[%clk 0:02:53]}  Nc6 {[%clk 0:02:55]} 9. e3 {[%clk 0:02:53]}  e5 {[%clk 0:02:52]} 10. exd4 {[%clk 0:02:54]}  exd4 {[%clk 0:02:52]} 11. Re1 {[%clk 0:02:54]}  Bg4 {[%clk 0:02:50]} 12. h3 {[%clk 0:02:54]}  Bh5 {[%clk 0:02:49]} 13. g4 {[%clk 0:02:53]}  Bg6 {[%clk 0:02:49]} 14. Ne5 {[%clk 0:02:46]}  Nxe5 {[%clk 0:02:45]} 15. Rxe5 {[%clk 0:02:47]}  Bd6 {[%clk 0:02:44]} 16. Rxc5 {[%clk 0:02:45]}  Bxc5 {[%clk 0:02:43]} 17. Nxc5 {[%clk 0:02:46]}  Qc7 {[%clk 0:02:36]} 18. b4 {[%clk 0:02:34]}  Nd7 {[%clk 0:02:25]} 19. Nxb7 {[%clk 0:02:30]}  Rab8 {[%clk 0:02:23]} 20. Na5 {[%clk 0:02:13]}  Rxb4 {[%clk 0:02:21]} 21. Nc6 {[%clk 0:02:12]}  Rb6 {[%clk 0:02:18]} 22. Ne7+ {[%clk 0:02:10]}  Kh8 {[%clk 0:02:18]} 23. Nd5 {[%clk 0:02:10]}  Qc5 {[%clk 0:02:06]} 24. a4 {[%clk 0:01:56]}  Re8 {[%clk 0:01:40]} 25. Nxb6 {[%clk 0:01:51]}  Qc8 {[%clk 0:01:41]} 26. Nxc8 {[%clk 0:01:51]} 1-0


[Site "https://www.chess.com"]

[Event "Titled Tuesday Blitz February 14 Early 2023"]
[White "Veiga, Jose Francisco R P Neves"]
[Black "Floresvillar Gonzalez, Luis Migu"]
[WhiteFideId "1930087"]
[BlackFideId "5100542"]
[WhiteElo "2406"]
[BlackElo "2043"]
[Result "1-0"]
[Round "01"]
[TimeControl "180+2"]
[Date "2023.02.15"]
[WhiteClock "0:01:48"]
[BlackClock "0:00:06"]

1. Nf3 {[%clk 0:03:00]}  d5 {[%clk 0:02:58]} 2. c4 {[%clk 0:03:01]}  c6 {[%clk 0:02:57]} 3. e3 {[%clk 0:03:00]}  Bg4 {[%clk 0:02:56]} 4. Qb3 {[%clk 0:03:00]}  Qb6 {[%clk 0:02:35]} 5. Ne5 {[%clk 0:02:59]}  Qxb3 {[%clk 0:02:34]} 6. axb3 {[%clk 0:02:58]}  Be6 {[%clk 0:02:29]} 7. Nc3 {[%clk 0:02:56]}  Nd7 {[%clk 0:02:23]} 8. Nxd7 {[%clk 0:02:54]}  Kxd7 {[%clk 0:02:18]} 9. d4 {[%clk 0:02:54]}  Nf6 {[%clk 0:02:15]} 10. Bd3 {[%clk 0:02:51]}  a6 {[%clk 0:02:14]} 11. Na4 {[%clk 0:02:50]}  Kc7 {[%clk 0:01:56]} 12. Bd2 {[%clk 0:02:49]}  Nd7 {[%clk 0:01:46]} 13. e4 {[%clk 0:02:40]}  dxe4 {[%clk 0:01:42]} 14. Bxe4 {[%clk 0:02:41]}  g6 {[%clk 0:01:38]} 15. Bf4+ {[%clk 0:02:39]}  Kc8 {[%clk 0:01:36]} 16. d5 {[%clk 0:02:34]}  cxd5 {[%clk 0:01:30]} 17. cxd5 {[%clk 0:02:35]}  Bf5 {[%clk 0:01:26]} 18. Rc1+ {[%clk 0:02:34]}  Kd8 {[%clk 0:01:25]} 19. Bxf5 {[%clk 0:02:32]}  gxf5 {[%clk 0:01:25]} 20. Ke2 {[%clk 0:02:31]}  Bg7 {[%clk 0:01:20]} 21. Rc7 {[%clk 0:02:26]}  b5 {[%clk 0:01:03]} 22. Rxd7+ {[%clk 0:02:25]}  Kxd7 {[%clk 0:00:57]} 23. Nb6+ {[%clk 0:02:26]}  Kd8 {[%clk 0:00:38]} 24. Nxa8 {[%clk 0:02:25]}  e5 {[%clk 0:00:39]} 25. dxe6 {[%clk 0:02:25]}  fxe6 {[%clk 0:00:38]} 26. Rd1+ {[%clk 0:02:23]}  Kc8 {[%clk 0:00:36]} 27. Nb6+ {[%clk 0:02:20]}  Kb7 {[%clk 0:00:36]} 28. Rd7+ {[%clk 0:02:20]}  Kxb6 {[%clk 0:00:36]} 29. Rxg7 {[%clk 0:02:21]}  h5 {[%clk 0:00:32]} 30. Be3+ {[%clk 0:02:20]}  Ka5 {[%clk 0:00:30]} 31. Bc5 {[%clk 0:02:17]}  e5 {[%clk 0:00:28]} 32. Kd3 {[%clk 0:02:16]}  e4+ {[%clk 0:00:27]} 33. Kc3 {[%clk 0:02:16]}  Rc8 {[%clk 0:00:22]} 34. b4+ {[%clk 0:02:16]}  Ka4 {[%clk 0:00:21]} 35. Ra7 {[%clk 0:02:16]}  Rc6 {[%clk 0:00:20]} 36. b3+ {[%clk 0:02:09]}  Ka3 {[%clk 0:00:19]} 37. g3 {[%clk 0:02:06]}  h4 {[%clk 0:00:17]} 38. gxh4 {[%clk 0:02:05]}  f4 {[%clk 0:00:18]} 39. h5 {[%clk 0:02:05]}  e3 {[%clk 0:00:18]} 40. fxe3 {[%clk 0:02:05]}  fxe3 {[%clk 0:00:18]} 41. Kd3 {[%clk 0:01:59]}  Kxb3 {[%clk 0:00:08]} 42. Kxe3 {[%clk 0:01:59]}  a5 {[%clk 0:00:09]} 43. Rxa5 {[%clk 0:01:58]}  Kc4 {[%clk 0:00:07]} 44. Kf4 {[%clk 0:01:57]}  Re6 {[%clk 0:00:08]} 45. Ra8 {[%clk 0:01:55]}  Re2 {[%clk 0:00:08]} 46. h4 {[%clk 0:01:48]}  Rg2 {[%clk 0:00:06]} 47. h6 {[%clk 0:01:48]}  Rg6 {[%clk 0:00:06]} 48. h7 {[%clk 0:01:48]}  Rh6 {[%clk 0:00:06]} 49. h8=Q {[%clk 0:01:48]} 1-0


[Site "https://www.chess.com"]